bitfinex-derivatives/quotes_SOLF0:USTF0_20260202
["timestamp","ask_amount","ask_price","bid_price","bid_amount"]
[1770019001128,7.26016963,101.43,101.35,37.45521184]
[1770019002222,7.26016963,101.43,101.36,37.45521184]
[1770019002737,192.79109106,101.43,101.36,37.45521184]
[1770019002924,45.72229106,101.43,101.36,37.45521184]
[1770019003129,393.38,101.44,101.36,37.45521184]
[1770019003326,7.26016963,101.45,101.37,37.45521184]
[1770019003530,7.26016963,101.45,101.38,37.45521184]
[1770019005037,440.72342143,101.46,101.38,37.45521184]
[1770019005330,38.46212143,101.45,101.38,37.45521184]
[1770019005737,393.38,101.46,101.38,37.45521184]
[1770019006041,183.88179106,101.45,101.36,37.45521184]
[1770019006338,45.72229106,101.45,101.36,37.45521184]
[1770019006734,439.18229106,101.45,101.36,37.45521184]
[1770019007136,448.06439106,101.45,101.37,37.45521184]
[1770019007636,431.92212143,101.45,101.38,36.48312283]
[1770019008633,145.39106963,101.47,101.39,36.48312283]
[1770019008634,8.8803,101.47,101.39,36.48312283]
[1770019009335,45.81054851,101.47,101.39,36.48312283]
[1770019009534,191.20431814,101.47,101.39,36.48312283]
[1770019009833,584.72431814,101.47,101.39,36.48312283]
[1770019013440,36.93024851,101.46,101.39,36.48312283]
[1770019013937,36.93024851,101.46,101.39,45.36952283]
[1770019014441,36.93024851,101.46,101.39,183.60842283]
[1770019014637,36.93024851,101.46,101.39,45.36952283]
[1770019014838,36.93024851,101.46,101.39,36.48312283]
[1770019015040,45.81114851,101.46,101.39,36.48312283]
[1770019015436,36.93024851,101.46,101.39,45.36962283]
[1770019015833,36.93024851,101.46,101.4,36.48312283]
[1770019016032,430.47024851,101.48,101.4,36.48312283]
[1770019016838,439.34934851,101.48,101.4,45.36882283]
[1770019017138,439.34934851,101.48,101.4,174.70872283]
[1770019017338,439.34934851,101.48,101.41,8.8849]
[1770019017534,393.54,101.48,101.41,36.48312283]
[1770019017741,36.93024851,101.5,101.42,174.68112283]
[1770019018340,36.93024851,101.5,101.43,8.8831]
[1770019018843,36.93024851,101.5,101.43,45.36622283]
[1770019019540,393.54,101.51,101.45,36.48312283]
[1770019020239,36.93024851,101.52,101.45,174.63942283]
[1770019020541,44.19041814,101.53,101.44,36.48312283]
[1770019020741,45.80584851,101.52,101.44,45.36502283]
[1770019021041,36.93024851,101.52,101.45,36.48312283]
[1770019021247,36.93024851,101.54,101.46,36.48312283]
[1770019021437,36.93024851,101.54,101.47,36.48312283]
[1770019022145,393.52,101.55,101.48,36.48312283]
[1770019022342,174.91014851,101.59,101.5,36.48312283]
[1770019022544,36.93024851,101.59,101.51,174.55772283]
[1770019022847,36.93024851,101.62,101.54,36.48312283]
[1770019023045,36.93024851,101.61,101.54,36.48312283]
[1770019023552,36.93024851,101.61,101.54,174.51782283]
[1770019023749,36.93024851,101.61,101.54,36.48312283]
[1770019023951,36.93024851,101.61,101.54,45.35642283]
[1770019024545,400.74016963,101.63,101.55,183.37492283]
[1770019024740,36.93024851,101.62,101.55,36.48312283]
[1770019029250,36.93024851,101.62,101.54,8.8732]
[1770019030050,430.19024851,101.62,101.54,8.8732]
[1770019030251,36.93024851,101.62,101.53,46.07302909]
[1770019030452,430.17024851,101.62,101.54,37.19862909]
[1770019031043,430.17024851,101.62,101.54,184.10332909]
[1770019031250,37.26900542,101.61,101.54,46.07182909]
[1770019031448,37.26900542,101.61,101.54,184.10662909]
[1770019031753,393.24,101.62,101.55,184.09162909]
[1770019032842,393.24,101.62,101.55,46.07112909]
[1770019033252,44.52917505,101.63,101.55,46.07112909]
[1770019033453,437.70917505,101.63,101.55,46.07112909]
[1770019034049,37.26900542,101.62,101.55,46.07112909]
[1770019034251,37.26900542,101.62,101.55,37.19862909]
[1770019034956,37.26900542,101.6,101.52,37.19862909]
[1770019035157,37.26900542,101.56,101.49,37.19862909]
[1770019035456,7.26016963,101.55,101.49,37.19862909]
[1770019035955,44.52917505,101.55,101.47,37.19862909]
[1770019036753,437.66917505,101.55,101.47,37.19862909]
[1770019037450,446.54217505,101.55,101.47,46.07812909]
[1770019037755,446.54217505,101.55,101.48,175.31242909]
[1770019037756,430.40900542,101.55,101.48,175.31242909]
[1770019038561,7.26016963,101.57,101.48,175.31242909]
[1770019038562,44.52917505,101.57,101.49,184.17672909]
[1770019043166,37.26900542,101.57,101.49,184.17672909]
[1770019043766,37.26900542,101.56,101.49,46.07642909]
[1770019044572,46.14110542,101.56,101.49,37.19862909]
[1770019045070,439.32110542,101.56,101.49,37.19862909]
[1770019045275,46.14210542,101.55,101.47,8.8791]
[1770019045472,37.26900542,101.54,101.46,37.19862909]
[1770019046468,37.26900542,101.54,101.46,46.07912909]
[1770019046669,37.26900542,101.53,101.46,37.19862909]
[1770019047172,44.52917505,101.55,101.47,37.19862909]
[1770019047367,44.52917505,101.55,101.48,37.19862909]
[1770019047368,37.26900542,101.55,101.48,37.19862909]
[1770019048164,37.26900542,101.55,101.49,8.8778]
[1770019050875,37.26900542,101.55,101.49,46.07642909]
[1770019051071,393.2,101.56,101.5,46.07542909]
[1770019051374,37.26900542,101.57,101.5,46.07542909]
[1770019052271,46.14030542,101.57,101.5,46.07542909]
[1770019052868,46.14100542,101.56,101.5,37.19862909]
[1770019053070,37.26900542,101.55,101.48,37.19862909]
[1770019053475,46.14190542,101.55,101.48,37.19862909]
[1770019053867,37.26900542,101.55,101.49,37.19862909]
[1770019054072,37.26900542,101.58,101.5,46.07542909]
[1770019054376,427.30900542,101.58,101.5,46.07542909]
[1770019054575,37.26900542,101.58,101.51,46.07462909]
[1770019055475,37.26900542,101.58,101.51,54.91878353]
[1770019056281,46.13930542,101.58,101.51,46.07462909]
[1770019056571,37.26900542,101.58,101.5,8.84415444]
[1770019056777,46.14020542,101.57,101.49,184.14388353]
[1770019056976,430.48900542,101.59,101.52,37.19862909]
[1770019057374,37.26900542,101.59,101.52,54.91768353]
[1770019057578,37.26900542,101.61,101.54,37.19862909]
[1770019057972,37.26900542,101.61,101.54,46.07212909]
[1770019059276,37.26900542,101.61,101.54,54.91628353]
[1770019059876,44.53545343,101.61,101.54,8.84415444]
[1770019060073,43.185926,101.59,101.53,8.84415444]
[1770019060372,43.185926,101.59,101.51,8.84415444]
[1770019060677,437.94977799,101.58,101.51,8.84415444]
[1770019061177,44.78977799,101.58,101.51,8.84415444]
[1770019061375,437.94977799,101.58,101.52,8.84415444]
[1770019062472,44.79067799,101.57,101.52,8.84415444]
[1770019062773,35.91947799,101.57,101.52,8.84415444]
[1770019063177,35.91947799,101.57,101.51,8.84415444]
[1770019063374,35.91947799,101.57,101.52,8.84415444]
[1770019063574,393.16,101.58,101.52,8.84415444]
[1770019063774,393.16,101.58,101.53,8.84415444]
[1770019064075,393.16,101.58,101.54,8.84415444]
[1770019064274,35.91947799,101.59,101.54,8.84415444]
[1770019066373,393.16,101.6,101.54,46.04685215]
[1770019066573,437.94677799,101.62,101.56,8.84415444]
[1770019066778,35.91947799,101.61,101.56,8.84415444]
[1770019068486,44.78707799,101.61,101.55,8.84415444]
[1770019068680,43.185926,101.61,101.54,8.84415444]
[1770019068875,428.75337637,101.6,101.54,8.84415444]
[1770019069884,428.75337637,101.6,101.55,8.84415444]
[1770019070382,437.62187637,101.6,101.55,8.84415444]
[1770019070583,428.75337637,101.6,101.55,8.84415444]
[1770019070886,428.75337637,101.6,101.56,8.84415444]
[1770019071280,35.61337637,101.6,101.56,8.84415444]
[1770019073883,437.58087637,101.62,101.56,8.84415444]
[1770019074080,35.61337637,101.64,101.58,34.7984829]
[1770019074395,35.61337637,101.64,101.59,8.84415444]
[1770019077682,35.61337637,101.66,101.6,34.7984829]
[1770019077886,35.61337637,101.66,101.61,8.84415444]
[1770019078187,321.33337637,101.68,101.62,8.84415444]
[1770019078388,285.72,101.68,101.62,52.50913734]
[1770019078786,35.61337637,101.7,101.64,34.7984829]
[1770019078981,35.61337637,101.7,101.64,43.64263734]
[1770019079488,35.61337637,101.7,101.64,43.6631829]
[1770019080189,35.61337637,101.7,101.64,34.7984829]
[1770019080386,35.61337637,101.7,101.62,181.56553734]
[1770019080587,35.61337637,101.69,101.61,8.84415444]
[1770019080791,35.61337637,101.64,101.59,8.84415444]
[1770019080984,42.87982438,101.62,101.55,8.84415444]
[1770019081186,7.26644801,101.6,101.54,43.64263734]
[1770019081385,42.87982438,101.6,101.54,8.84415444]
[1770019081586,35.61337637,101.59,101.52,17.71895444]
[1770019081779,35.61337637,101.57,101.52,8.84415444]
[1770019081980,42.87982438,101.56,101.48,34.7984829]
[1770019082284,7.26644801,101.56,101.48,34.7984829]
[1770019082586,7.26644801,101.54,101.48,34.7984829]
[1770019082787,435.79982438,101.54,101.45,172.9450829]
[1770019083084,435.79982438,101.54,101.47,34.7984829]
[1770019083292,428.53337637,101.54,101.47,172.9261829]
[1770019083585,7.26644801,101.56,101.48,172.9129829]
[1770019084486,35.61337637,101.57,101.5,34.7984829]
[1770019084690,435.81982438,101.58,101.5,172.8850829]
[1770019084886,435.81982438,101.58,101.5,34.7984829]
[1770019085090,35.61337637,101.57,101.5,34.7984829]
[1770019085286,42.87982438,101.6,101.52,34.7984829]
[1770019087290,435.87982438,101.6,101.52,34.7984829]
[1770019088086,37.3165542,101.59,101.5,138.0873]
[1770019088290,44.58300221,101.58,101.5,38.06091383]
[1770019088696,44.58300221,101.56,101.47,185.06141383]
[1770019088896,37.3165542,101.55,101.48,38.06091383]
[1770019090393,37.3165542,101.55,101.47,147.0079]
[1770019090394,37.3165542,101.55,101.47,8.8794]
[1770019090593,44.58300221,101.54,101.46,38.06091383]
[1770019090793,37.3165542,101.53,101.45,147.0258]
[1770019091296,37.3165542,101.53,101.44,397.16525644]
[1770019091297,44.58300221,101.52,101.44,379.36]
[1770019091599,44.58300221,101.52,101.43,185.11591383]
[1770019094500,53.45890221,101.52,101.43,185.12811383]
[1770019094901,44.58300221,101.52,101.44,185.11321383]
[1770019095101,44.58300221,101.52,101.45,38.06091383]
[1770019095295,44.58300221,101.52,101.45,176.21371383]
[1770019095502,44.58300221,101.52,101.43,176.24531383]
[1770019095800,44.58300221,101.5,101.43,38.06091383]
[1770019096398,37.3165542,101.5,101.43,185.12741383]
[1770019096895,37.3165542,101.53,101.45,46.94211383]
[1770019097098,37.3165542,101.52,101.45,46.94211383]
[1770019097300,44.58300221,101.52,101.45,38.06091383]
[1770019097603,393.2,101.53,101.46,38.06091383]
[1770019098201,44.58300221,101.54,101.46,38.06091383]
[1770019098402,44.58300221,101.54,101.46,185.08271383]
[1770019098598,167.5814,101.58,101.48,176.17671383]
[1770019098599,37.3165542,101.57,101.48,176.17671383]
[1770019099200,37.3165542,101.57,101.49,46.93851383]
[1770019099996,46.1878542,101.57,101.49,46.93851383]
[1770019103005,302.12644801,101.58,101.5,38.06091383]
[1770019103305,7.26644801,101.62,101.55,176.07811383]
[1770019103600,37.3165542,101.63,101.55,176.07811383]
[1770019103601,37.3165542,101.63,101.56,46.93261383]
[1770019103808,37.3165542,101.63,101.56,184.93961383]
[1770019104398,37.3165542,101.66,101.59,38.06091383]
[1770019104599,37.3165542,101.66,101.59,176.02531383]
[1770019104796,37.3165542,101.66,101.59,38.06091383]
[1770019106807,44.58300221,101.64,101.56,38.06091383]
[1770019107004,7.26644801,101.66,101.58,38.06091383]
[1770019107201,44.58300221,101.66,101.58,38.06091383]
[1770019107510,37.3165542,101.66,101.59,38.06091383]
[1770019109410,37.3165542,101.65,101.56,184.93991383]
[1770019109811,44.5677841,101.64,101.56,38.06091383]
[1770019110204,37.3165542,101.63,101.56,38.06091383]
[1770019110400,44.5677841,101.62,101.53,38.06091383]
[1770019110604,37.3165542,101.61,101.53,38.06091383]
[1770019110804,44.5677841,101.61,101.53,38.06091383]
[1770019111305,44.5677841,101.61,101.53,184.98331383]
[1770019112006,37.3165542,101.66,101.57,38.06091383]
[1770019112309,37.3165542,101.68,101.6,176.01121383]
[1770019112507,37.3165542,101.71,101.64,146.7637]
[1770019112702,44.5677841,101.74,101.65,175.94311383]
[1770019112907,44.5677841,101.74,101.66,175.92141383]
[1770019113108,44.5677841,101.74,101.65,137.8822]
[1770019113302,44.5677841,101.74,101.61,137.9288]
[1770019113303,37.3165542,101.71,101.61,137.9288]
[1770019113503,44.5677841,101.69,101.6,38.06091383]
[1770019113706,182.4304841,101.67,101.57,176.04401383]
[1770019113912,7.2512299,101.65,101.57,38.06091383]
[1770019114214,7.2512299,101.63,101.55,146.8834]
[1770019114516,7.2512299,101.65,101.57,38.06091383]
[1770019114712,44.5677841,101.65,101.57,38.06091383]
[1770019114909,182.4542841,101.65,101.57,38.06091383]
[1770019115110,7.2512299,101.63,101.57,38.06091383]
[1770019116016,7.2512299,101.63,101.55,146.8927]
[1770019116516,44.5677841,101.63,101.55,146.8927]
[1770019116712,7.2512299,101.61,101.54,38.06091383]
[1770019117514,7.2512299,101.63,101.55,176.07921383]
[1770019118016,45.55334745,101.63,101.55,38.06091383]
[1770019118219,45.55334745,101.63,101.55,176.08191383]
[1770019118518,7.2512299,101.65,101.56,184.74565029]
[1770019119609,7.2512299,101.65,101.57,137.9938]
[1770019120210,7.2512299,101.63,101.55,138.021]
[1770019120411,7.2512299,101.63,101.55,175.88815029]
[1770019121317,7.2512299,101.63,101.55,184.76085029]
[1770019121705,154.0326299,101.63,101.55,37.86715029]
[1770019121912,7.2512299,101.61,101.53,425.80125029]
[1770019122111,7.2512299,101.61,101.53,563.84965029]
[1770019122611,7.2512299,101.61,101.53,184.78965029]
[1770019124918,576.47484745,101.61,101.53,37.86715029]
[1770019125617,185.12491755,101.6,101.53,37.86715029]
[1770019125818,7.2512299,101.59,101.51,46.74305029]
[1770019126421,38.30211755,101.58,101.51,46.74305029]
[1770019129622,38.30211755,101.58,101.51,37.86715029]
[1770019132328,47.17251755,101.58,101.51,37.86715029]
[1770019134523,7.2512299,101.57,101.51,37.86715029]
[1770019134719,440.25251755,101.58,101.51,37.86715029]
[1770019137418,431.38211755,101.58,101.51,46.74305029]
[1770019137624,446.20217191,101.6,101.52,34.91284393]
[1770019137924,36.98184201,101.59,101.52,34.91284393]
[1770019138318,36.98184201,101.59,101.52,43.78784393]
[1770019139325,393.1,101.6,101.54,34.91284393]
[1770019139727,430.08184201,101.6,101.52,184.91309225]
[1770019140027,437.33307191,101.6,101.52,172.97454393]
[1770019140228,44.23307191,101.6,101.52,172.97454393]
[1770019140529,432.55307191,101.6,101.52,172.97454393]
[1770019140729,441.42157191,101.6,101.52,43.78744393]
[1770019141127,441.42157191,101.6,101.52,55.72599225]
[1770019141933,441.42157191,101.6,101.53,17.86771767]
[1770019142130,36.98184201,101.6,101.54,43.9065616]
[1770019142326,53.10047191,101.62,101.55,8.99371767]
[1770019142520,376.44047191,101.62,101.55,8.99371767]
[1770019142723,36.98184201,101.61,101.55,8.99371767]
[1770019142929,36.98184201,101.61,101.54,43.9065616]
[1770019143333,36.98184201,101.61,101.55,8.99371767]
[1770019149336,37.80794506,101.59,101.55,8.99371767]
[1770019149536,430.86794506,101.59,101.53,8.99371767]
[1770019149729,37.80794506,101.58,101.53,8.99371767]
[1770019150238,37.80794506,101.58,101.49,17.93217985]
[1770019150239,35.94182741,101.55,101.49,17.93217985]
[1770019150438,35.94182741,101.55,101.48,45.31185285]
[1770019150638,35.94182741,101.55,101.49,36.43375285]
[1770019150834,429.00182741,101.57,101.49,36.43375285]
[1770019151340,43.29953888,101.6,101.51,36.43375285]
[1770019151542,393.06,101.58,101.52,36.43375285]
[1770019151942,393.06,101.58,101.52,45.30895285]
[1770019152535,401.9302,101.58,101.52,36.43375285]
[1770019152936,52.76327995,101.58,101.52,36.43375285]
[1770019153136,445.84327995,101.58,101.52,36.43375285]
[1770019153336,52.76327995,101.58,101.52,36.43375285]
[1770019153539,445.84327995,101.58,101.52,36.43375285]
[1770019153739,445.84327995,101.58,101.51,8.8761]
[1770019154339,36.64180187,101.57,101.51,8.8761]
[1770019154543,393.08,101.56,101.49,8.8772]
[1770019154747,36.64180187,101.55,101.48,36.43375285]
[1770019154942,43.89885772,101.54,101.46,54.3659327]
[1770019155249,36.64762782,101.53,101.46,36.43375285]
[1770019156046,36.64762782,101.53,101.46,45.31415285]
[1770019156245,429.76762782,101.53,101.44,192.5268327]
[1770019156550,438.64242782,101.53,101.45,45.31505285]
[1770019156945,429.76762782,101.53,101.46,36.43375285]
[1770019158447,36.0703917,101.52,101.44,192.5268327]
[1770019158749,36.0703917,101.52,101.45,36.43375285]
[1770019159452,36.0703917,101.52,101.45,45.31495285]
[1770019160051,36.0703917,101.52,101.46,45.31405285]
[1770019161151,7.2512299,101.54,101.47,45.31315285]
[1770019161347,400.4512299,101.54,101.47,45.31315285]
[1770019161750,393.2,101.54,101.48,45.31245285]
[1770019162451,35.42434036,101.55,101.49,45.31165285]
[1770019162852,35.42434036,101.55,101.49,36.43375285]
[1770019163346,35.42434036,101.55,101.47,54.3659327]
[1770019163546,36.52007951,101.54,101.47,36.43375285]
[1770019163751,43.77130941,101.54,101.47,36.43375285]
[1770019163954,36.52199146,101.53,101.46,8.88]
[1770019164149,36.52199146,101.53,101.45,54.3659327]
[1770019164150,43.77322136,101.52,101.45,36.43375285]
[1770019164346,436.99322136,101.52,101.45,36.43375285]
[1770019165355,445.86902136,101.52,101.45,36.43375285]
[1770019167256,393.26,101.51,101.45,36.43375285]
[1770019167759,429.98320364,101.51,101.45,36.43375285]
[1770019167960,43.97626361,101.5,101.41,54.3659327]
[1770019168256,36.72503371,101.47,101.41,36.43375285]
[1770019169356,45.60503371,101.47,101.41,36.43375285]
[1770019170259,36.72503371,101.47,101.41,36.43375285]
[1770019172969,45.60493371,101.47,101.4,8.8855]
[1770019173267,36.72503371,101.47,101.4,8.8855]
[1770019175270,437.3799929,101.49,101.42,36.43375285]
[1770019175471,44.0999929,101.49,101.42,36.43375285]
[1770019176373,35.22302982,101.48,101.42,8.8838]
[1770019176561,35.22302982,101.47,101.4,36.43375285]
[1770019177365,35.22302982,101.47,101.4,45.31925285]
[1770019179168,44.10292982,101.47,101.4,45.31925285]
[1770019179369,42.33834231,101.46,101.38,43.88018247]
[1770019179665,435.79834231,101.46,101.38,43.88018247]
[1770019179872,8.8817,101.45,101.38,43.88018247]
[1770019180664,435.79834231,101.46,101.39,8.8867]
[1770019180866,435.79834231,101.46,101.4,34.99308247]
[1770019181077,35.05930992,101.46,101.4,34.99308247]
[1770019181272,35.05930992,101.46,101.41,8.8849]
[1770019181474,264.88,101.47,101.41,173.20218247]
[1770019181973,264.88,101.47,101.43,8.8831]
[1770019182168,36.73409788,101.48,101.43,8.8831]
[1770019184574,393.48,101.5,101.44,43.87498247]
[1770019185178,430.25846227,101.5,101.44,43.87498247]
[1770019186276,36.77846227,101.5,101.44,43.87498247]
[1770019186480,36.77846227,101.5,101.44,8.8819]
[1770019186877,45.65586227,101.5,101.43,34.99308247]
[1770019187381,439.13586227,101.5,101.43,34.99308247]
[1770019188276,439.13586227,101.5,101.43,43.87628247]
[1770019188478,46.65748858,101.49,101.43,34.99308247]
[1770019188682,37.77938858,101.48,101.41,37.38867272]
[1770019188882,37.77938858,101.48,101.39,37.38867272]
[1770019189079,44.99792773,101.45,101.38,8.8873]
[1770019189284,44.99792773,101.45,101.37,37.38867272]
[1770019189285,438.47792773,101.45,101.37,37.38867272]
[1770019189677,438.47792773,101.45,101.37,184.53997272]
[1770019189882,438.47792773,101.45,101.38,175.64057272]
[1770019190185,37.72029885,101.44,101.38,37.38867272]
[1770019190383,37.72029885,101.44,101.36,46.27747272]
[1770019190588,37.72029885,101.44,101.36,37.38867272]
[1770019190778,44.99933124,101.43,101.34,37.38867272]
[1770019190983,44.92433534,101.41,101.32,175.71067272]
[1770019191281,37.64530295,101.41,101.33,175.70717272]
[1770019191781,37.64530295,101.41,101.31,37.38867272]
[1770019191977,7.27903239,101.4,101.32,175.72117272]
[1770019192179,44.9257055,101.4,101.32,37.38867272]
[1770019192683,44.9257055,101.4,101.32,184.61497272]
[1770019192986,37.64667311,101.43,101.35,37.38867272]
[1770019194180,38.15947536,101.41,101.33,37.38867272]
[1770019195587,38.15947536,101.43,101.33,37.38867272]
[1770019196392,38.15947536,101.43,101.33,46.28037272]
[1770019199095,431.77947536,101.45,101.35,37.38867272]
[1770019199496,38.15947536,101.44,101.36,37.38867272]
[1770019199697,45.43850775,101.44,101.36,37.38867272]
[1770019200188,38.15947536,101.44,101.36,37.38867272]
[1770019201086,47.04227536,101.44,101.36,37.38867272]
[1770019202397,578.84477536,101.46,101.36,37.38867272]
[1770019202597,440.70057536,101.46,101.36,37.38867272]
[1770019203193,47.03897536,101.48,101.39,37.38867272]
[1770019203492,38.15947536,101.48,101.4,49.43512882]
[1770019203697,38.15947536,101.48,101.4,37.38867272]
[1770019203892,47.03867536,101.48,101.4,37.38867272]
[1770019204197,38.15947536,101.48,101.4,37.38867272]
[1770019204397,38.15947536,101.48,101.4,49.43512882]
[1770019204996,38.15947536,101.48,101.4,37.38867272]
[1770019205396,38.15947536,101.47,101.4,37.38867272]
[1770019205793,138.0443,101.54,101.43,37.38867272]
[1770019205994,38.15947536,101.55,101.46,37.38867272]
[1770019206189,38.15947536,101.55,101.44,37.38867272]
[1770019206190,38.15947536,101.52,101.44,37.38867272]
[1770019206391,38.15947536,101.52,101.44,175.55897272]
[1770019206599,8.8742,101.54,101.44,175.55897272]
[1770019206600,47.03367536,101.54,101.45,37.38867272]
[1770019207202,185.08307536,101.53,101.45,37.38867272]
[1770019207399,38.15947536,101.52,101.45,37.38867272]
[1770019207599,38.15947536,101.5,101.42,37.38867272]
[1770019207800,138.0488,101.53,101.44,34.84512842]
[1770019207801,37.73401862,101.53,101.44,34.84512842]
[1770019208100,37.73401862,101.55,101.46,34.84512842]
[1770019208298,175.76081862,101.55,101.46,34.84512842]
[1770019208500,175.77201862,101.54,101.46,34.84512842]
[1770019208898,37.73401862,101.54,101.46,34.84512842]
[1770019209098,175.71041862,101.59,101.48,172.95892842]
[1770019209299,175.71041862,101.59,101.49,34.84512842]
[1770019209300,175.70151862,101.59,101.49,34.84512842]
[1770019209598,37.73401862,101.55,101.49,34.84512842]
[1770019209800,37.73401862,101.57,101.49,34.84512842]
[1770019210201,175.72911862,101.57,101.49,34.84512842]
[1770019210601,46.60541862,101.57,101.49,34.84512842]
[1770019211305,184.60101862,101.57,101.49,34.84512842]
[1770019211495,37.73401862,101.54,101.46,34.84512842]
[1770019211694,175.74241862,101.56,101.46,34.84512842]
[1770019213301,8.8731,101.55,101.46,34.84512842]
[1770019213601,46.60711862,101.55,101.46,34.84512842]
[1770019214100,184.62911862,101.55,101.46,34.84512842]
[1770019214698,46.60801862,101.54,101.46,34.84512842]
[1770019215001,37.73401862,101.52,101.44,34.84512842]
[1770019215306,46.60981862,101.52,101.44,34.84512842]
[1770019215499,393.44,101.55,101.46,34.84512842]
[1770019215699,37.73401862,101.57,101.48,34.84512842]
[1770019216004,37.73401862,101.57,101.49,34.84512842]
[1770019216208,37.73401862,101.56,101.49,34.84512842]
[1770019216802,569.11091862,101.59,101.49,34.84512842]
[1770019217001,175.71531862,101.58,101.49,34.84512842]
[1770019217403,46.60441862,101.58,101.49,34.84512842]
[1770019217895,37.73401862,101.57,101.49,34.84512842]
[1770019218308,37.73401862,101.57,101.5,34.84512842]
[1770019218708,431.13401862,101.59,101.5,34.84512842]
[1770019219098,8.869,101.6,101.51,34.84512842]
[1770019219297,8.8666,101.63,101.52,34.84512842]
[1770019219504,37.73401862,101.64,101.55,34.84512842]
[1770019219698,37.73401862,101.62,101.55,34.84512842]
[1770019220413,46.59871862,101.65,101.56,34.84512842]
[1770019220710,137.8547,101.68,101.59,34.84512842]
[1770019220711,37.73401862,101.68,101.59,34.84512842]
[1770019221908,8.8609,101.69,101.6,34.84512842]
[1770019222508,37.73401862,101.68,101.6,34.84512842]
[1770019222709,37.73401862,101.67,101.6,34.84512842]
[1770019223009,137.8326,101.69,101.6,34.84512842]
[1770019223208,175.56661862,101.69,101.6,34.84512842]
[1770019223514,184.42741862,101.69,101.6,34.84512842]
[1770019223811,46.59481862,101.69,101.6,34.84512842]
[1770019224207,184.42631862,101.69,101.6,34.84512842]
[1770019224511,37.73401862,101.69,101.6,34.84512842]
[1770019225213,46.59291862,101.71,101.61,34.84512842]
[1770019225810,184.40251862,101.71,101.61,34.84512842]
[1770019227205,184.41351862,101.7,101.61,34.84512842]
[1770019228105,175.59291862,101.67,101.57,34.84512842]
[1770019228308,37.73401862,101.69,101.6,34.84512842]
[1770019228603,37.73401862,101.72,101.63,34.84512842]
[1770019228806,175.52551862,101.72,101.63,34.84512842]
[1770019229011,37.73401862,101.7,101.6,34.84512842]
[1770019229410,175.52241862,101.73,101.62,34.84512842]
[1770019229611,37.73401862,101.73,101.63,34.84512842]
[1770019230009,37.73401862,101.71,101.63,34.84512842]
[1770019230914,8.8597,101.7,101.63,34.84512842]
[1770019231111,175.58091862,101.68,101.6,34.84512842]
[1770019231310,175.60701862,101.66,101.56,34.84512842]
[1770019231614,137.914,101.63,101.56,34.84512842]
[1770019232213,146.7802,101.63,101.56,34.84512842]
[1770019232416,146.7802,101.63,101.5,138.0782]
[1770019232417,137.9587,101.6,101.53,34.84512842]
[1770019232615,175.69271862,101.6,101.53,34.84512842]
[1770019232912,137.9824,101.58,101.5,34.84512842]
[1770019233109,175.71641862,101.58,101.5,34.84512842]
[1770019233509,137.9587,101.6,101.5,34.84512842]
[1770019233815,568.55481862,101.61,101.51,34.84512842]
[1770019234108,37.73401862,101.61,101.53,34.84512842]
[1770019234616,137.924,101.63,101.53,34.84512842]
[1770019234912,175.65801862,101.63,101.53,34.84512842]
[1770019235307,184.52421862,101.63,101.53,34.84512842]
[1770019235907,175.67771862,101.61,101.53,34.84512842]
[1770019236110,37.73401862,101.61,101.53,34.84512842]
[1770019236618,137.9342,101.62,101.53,34.84512842]
[1770019236819,37.73401862,101.64,101.55,34.84512842]
[1770019237318,8.8646,101.65,101.56,34.84512842]
[1770019238217,173.13873181,101.63,101.56,34.84512842]
[1770019238420,173.13873181,101.63,101.53,46.45467607]
[1770019239417,35.22583181,101.6,101.51,369.92]
[1770019239612,173.15333181,101.62,101.52,37.58077607]
[1770019239923,173.17103181,101.61,101.52,37.58077607]
[1770019240121,146.8223,101.6,101.52,37.58077607]
[1770019240416,35.22583181,101.6,101.52,37.58077607]
[1770019241124,182.04853181,101.6,101.52,37.58077607]
[1770019241321,173.17983181,101.6,101.52,37.58077607]
[1770019241619,137.9673,101.59,101.52,37.58077607]
[1770019241825,35.22583181,101.6,101.52,37.58077607]
[1770019242013,137.9275,101.62,101.52,37.58077607]
[1770019242218,566.04113181,101.63,101.52,37.58077607]
[1770019242420,574.90743181,101.63,101.53,37.58077607]
[1770019242624,436.99213181,101.63,101.53,37.58077607]
[1770019242820,566.04073181,101.63,101.53,37.58077607]
[1770019243019,173.14073181,101.63,101.53,37.58077607]
[1770019243220,8.8651,101.64,101.55,37.58077607]
[1770019244123,181.99173181,101.64,101.55,37.58077607]
[1770019244525,8.8662,101.63,101.55,37.58077607]
[1770019244823,7.25677818,101.62,101.55,37.58077607]
[1770019246320,189.27640999,101.62,101.55,37.58077607]
[1770019246525,180.43800999,101.6,101.52,37.58077607]
[1770019247626,180.46660999,101.58,101.5,37.58077607]
[1770019248127,7.25677818,101.56,101.5,37.58077607]
[1770019248327,145.27017818,101.56,101.5,37.58077607]
[1770019248624,8.8731,101.55,101.5,37.58077607]
[1770019248924,7.25677818,101.54,101.46,38.20581515]
[1770019249328,16.13097818,101.54,101.46,38.20581515]
[1770019249519,138.049,101.53,101.46,38.20581515]